fUST/lending_fUST_20240817
["ID","MTS","AMOUNT","RATE_DAILY","PERIOD"]
[335102117,1723825424172,-194102.55374241,0.00045478,120]
[335102128,1723825536208,-500.0,0.00041095,120]
[335102129,1723825536238,-491.42409354,0.00041369,120]
[335102130,1723825536269,-14608.15080419,0.00045478,61]
[335102131,1723825536297,-194102.55374241,0.00045478,120]
[335102132,1723825536324,-409.54827186,0.000499,28]
[335102133,1723825536350,-5430.96541402,0.0005,60]
[335102134,1723825536378,-5430.96541402,0.0005,60]
[335102136,1723825549827,-153.0,0.00051687,120]
[335102137,1723825549856,-262.317273,0.0005266,2]
[335102138,1723825549885,-2156.7566339,0.00055124,4]
[335102139,1723825549914,-756.1438166,0.00055124,4]
[335102140,1723825549944,-11636.2833467,0.00055669,6]
[335102141,1723825549973,-23272.5666934,0.00055679,6]
[335102142,1723825550005,-88888.0,0.00055689,120]
[335102143,1723825550032,-3046.3250519,0.00055789,120]
[335102144,1723825550060,-150.0,0.00056,120]
[335102145,1723825550118,-150.0,0.00057,120]
[335102146,1723825550139,-241.89046318,0.00057621,120]
[335102147,1723825552393,154.76012181,0.00055124,4]
[335102148,1723825556486,210.875158,0.0004274,2]
[335102149,1723825556889,210.875158,0.000477,2]
[335102150,1723825556935,154.76012181,0.00055124,4]
[335102151,1723825601896,-10126.785,0.000425,35]
[335102152,1723825601923,-4344.77233121,0.0005,60]
[335102153,1723825601950,-210.875158,0.0005266,2]
[335102154,1723825601975,-2182.3068049,0.00055589,120]
[335102155,1723825602001,-210.875158,0.00057621,120]
[335102156,1723825602030,-200.0,0.00058,120]
[335102158,1723825614962,-150.0,0.00062,120]
[335102159,1723825614989,-210.875158,0.00062581,120]
[335102160,1723825615015,-150.0,0.00063,120]
[335102161,1723825615042,-200.0,0.00064,120]
[335102162,1723825615073,-27741.07276146,0.00066816,120]
[335102163,1723825615110,-210.875158,0.00067542,120]
[335102164,1723825623645,-210.875158,0.00072502,120]
[335102165,1723825623672,-159.872278,0.00075616,120]
[335102166,1723825623699,-210.875158,0.00077462,120]
[335102168,1723825634162,-153.0,0.00081446,120]
[335102169,1723825634184,-64.00658717,0.00081446,120]
[335102170,1723825637099,-88.99341283,0.00081446,120]
[335102171,1723825637132,-153.0,0.00081446,120]
[335102172,1723825637160,-153.0,0.00081446,120]
[335102173,1723825637187,-210.875158,0.00082423,120]
[335102174,1723825637216,-153.0,0.00083899,120]
[335102175,1723825637245,-153.0,0.00083899,120]
[335102176,1723825637274,-153.0,0.00083899,120]
[335102177,1723825637302,-153.0,0.00083899,120]
[335102178,1723825637329,-153.0,0.00083899,120]
[335102179,1723825637360,-153.0,0.00083899,120]
[335102180,1723825637386,-153.0,0.00083899,120]
[335102181,1723825637413,-153.0,0.00083899,120]
[335102182,1723825637441,-153.0,0.00083899,120]
[335102183,1723825637471,-153.0,0.00083899,120]
[335102184,1723825637499,-153.0,0.00083899,120]
[335102185,1723825637528,-153.0,0.00083899,120]
[335102186,1723825637553,-153.0,0.00083899,120]
[335102187,1723825637579,-153.0,0.00083899,120]
[335102188,1723825637611,-153.0,0.00083899,120]
[335102189,1723825637640,-153.0,0.00083899,120]
[335102190,1723825637667,-153.0,0.00083899,120]
[335102191,1723825637692,-210.875158,0.00087383,120]
[335102192,1723825637717,-2000.0,0.0009,120]
[335102193,1723825637741,-2000.0,0.00091473,120]
[335102194,1723825637766,-1413.0,0.00091573,120]
[335102195,1723825637792,-210.875158,0.00092343,120]
[335102196,1723825637818,-3202.237,0.00092758,120]
[335102197,1723825637843,-508.677,0.00094573,120]
[335102198,1723825637870,-11636.2833467,0.0009599,16]
[335102199,1723825637896,-210.875158,0.00097304,120]
[335102200,1723825640693,4344.77233121,0.0005,60]
[335102201,1723825651118,-2760.00228315,0.0002989,2]
[335102202,1723825654117,-164.01095754,0.0002989,2]
[335102204,1723825674433,-159.872278,0.00014247,2]
[335102205,1723825674462,-18680.45458664,0.0002989,2]
[335102206,1723825674489,-153.0,0.00081446,120]
[335102207,1723825674516,-153.0,0.00081446,120]
[335102208,1723825674543,-153.0,0.00081446,120]
[335102209,1723825674700,-153.0,0.00081446,120]
[335102210,1723825674731,-153.0,0.00081446,120]
[335102211,1723825674760,-2000.0,0.000885,120]
[335102212,1723825674787,-2000.0,0.000885,120]
[335102213,1723825674813,-2000.0,0.000905,120]
[335102214,1723825674839,-2000.0,0.000905,120]
[335102215,1723825674865,-2000.0,0.000905,120]
[335102216,1723825674893,-2000.0,0.000925,120]
[335102217,1723825674919,-2000.0,0.000925,120]
[335102218,1723825674947,-2000.0,0.000925,120]
[335102219,1723825674973,-2000.0,0.000945,120]
[335102220,1723825675000,-2000.0,0.000945,120]
[335102221,1723825679388,53150.52830834,0.0002,2]
[335102222,1723825681252,300.0,0.00035974,2]
[335102223,1723825690692,4344.77233121,0.0005,60]
[335102224,1723825691707,2000.0,0.000945,120]
[335102225,1723825692611,2000.0,0.000945,120]
[335102226,1723825692992,2000.0,0.000945,120]
[335102227,1723825693591,2000.0,0.000945,120]
[335102228,1723825694695,200.03825876,0.00094311,120]
[335102229,1723825707523,-4000.0,0.00035975,2]
[335102230,1723825707554,-4000.0,0.00035975,4]
[335102231,1723825707580,-150.0,0.00035975,14]
[335102232,1723825707607,-150.0,0.00035975,14]
[335102233,1723825707633,-200.0,0.00035975,14]
[335102234,1723825707666,-22043.08058319,0.00035975,7]
[335102235,1723825707693,-6044.59356258,0.00035975,30]
[335102236,1723825707720,-11550.02268888,0.00035975,30]
[335102237,1723825707746,-5323.66227867,0.00035975,30]
[335102238,1723825707772,-340816.68533414,0.00035975,7]
[335102239,1723825717003,105721.95555254,0.00035975,30]
[335102240,1723825721945,-34374.91361928,0.00035975,30]
[335102241,1723825728698,17486.97187275,0.00035975,120]
[335102242,1723825730138,259.18894282,0.00035975,2]
[335102278,1723825757143,-165.05787817,0.00015,2]
[335102279,1723825757166,-7480.78408996,0.0001999,2]
[335102287,1723825780662,-7304.07540209,0.0001999,11]
[335102288,1723825780689,-287052.21591004,0.0001999,2]
[335102289,1723825780715,-21085.18789929,0.0002,2]
[335102290,1723825780742,-243.17908813,0.0002,2]
[335102291,1723825780770,-1857.9068555,0.0002,2]
[335102292,1723825780796,-4288.58663822,0.0002,2]
[335102293,1723825780831,-146813.0,0.00020377,2]
[335102294,1723825780855,-15806.893378,0.000205,2]
[335102295,1723825780884,-5708.28966832,0.00021,2]
[335102296,1723825780909,-10141.8879998,0.00021,2]
[335102297,1723825780933,-1158.43244742,0.000223,2]
[335102298,1723825780957,-11394.52954582,0.00023,2]
[335102299,1723825780982,-1000.0,0.00028,120]
[335102300,1723825781007,-318372.48769382,0.0003056,2]
[335102301,1723825781033,-5000.0,0.00035,7]
[335102302,1723825781061,-660.16807833,0.0004,2]
[335102303,1723825781086,-468.0,0.00046,7]
[335102304,1723825781110,-4344.77233121,0.0005,60]
[335102305,1723825781136,-2000.0,0.000945,120]
[335102306,1723825781161,-2000.0,0.000945,120]
[335102309,1723825785080,4999.99,0.0006,120]
[335102310,1723825812150,-12214.20624693,0.00025,30]
[335102311,1723825812178,-1333.66462,0.000311,7]
[335102312,1723825812207,-1000.0,0.000316,7]
[335102313,1723825812235,-475.93383457,0.00031779,2]
[335102314,1723825812263,-220283.99,0.00032387,30]
[335102315,1723825812290,-465.54669173,0.00033368,2]
[335102316,1723825812318,-360570.4576,0.00034387,30]
[335102317,1723825812349,-500.0,0.00041095,120]
[335102318,1723825812377,-782.1935295,0.00043605,4]
[335102319,1723825815261,150.0,0.0005,7]
[335102332,1723825832609,-358.35473786,0.00102164,28]
[335102333,1723825832620,-210.875158,0.00102264,120]
[335102334,1723825832631,-22.93549532,0.00107224,120]
[335102335,1723825832643,-187.93966268,0.00107224,120]
[335102336,1723825832652,-210.875158,0.00112185,120]
[335102337,1723825832662,-882.51902373,0.00114543,14]
[335102338,1723825832672,-210.875158,0.00117145,120]
[335102340,1723825832682,-210.875158,0.00122105,120]
[335102342,1723825832692,-672.60039421,0.00123,120]
[335102344,1723825832701,-200.0,0.00123,4]
[335102346,1723825832712,-200.0,0.00123,3]
[335102348,1723825832722,-400.0,0.0012437,4]
[335102350,1723825832731,-400.44103282,0.0012437,3]
[335102352,1723825832741,-600.0,0.00126373,4]
[335102354,1723825832750,-210.875158,0.00127066,120]
[335102356,1723825832761,-531.14120332,0.00128714,4]
[335102358,1723825832771,-210.875158,0.00132026,120]
[335102360,1723825832781,-210.875158,0.00136986,120]
[335102361,1723825832792,-384.26053876,0.00145,120]
[335102362,1723825832801,-548.57925939,0.00147,120]
[335102363,1723825832811,-6251.62147127,0.00147,120]
[335102364,1723825832821,-546.0,0.00148,120]
[335102365,1723825832831,-6249.0,0.00148,120]
[335102366,1723825832840,-546.0,0.00149,120]
[335102367,1723825832850,-6249.0,0.00149,120]
[335102368,1723825832859,-546.0,0.0015,120]
[335102369,1723825832870,-6249.0,0.0015,120]
[335102370,1723825832881,-603.0,0.002045,30]
[335102371,1723825832890,-3000.00000001,0.0024,120]
[335102372,1723825832900,-5000.0,0.0025,120]
[335102373,1723825832909,-166.50993088,0.002574,120]
[335102374,1723825832919,-3259.23150661,0.002575,120]
[335102375,1723825832936,-3259.2315066,0.002575,120]
[335102376,1723825832950,-3259.2315066,0.002575,120]
[335102377,1723825832960,-3259.2315066,0.002575,120]
[335102378,1723825832970,-2299.63032641,0.002575,120]
[335102379,1723825832980,-2299.6303264,0.002575,120]
[335102380,1723825832990,-2299.6303264,0.002575,120]
[335102381,1723825833000,-2299.6303264,0.002575,120]
[335102382,1723825833011,-14702.32239291,0.00273963,60]
[335102383,1723825833024,-424.84595779,0.00273963,60]
[335102384,1723825833034,-177.059266,0.00273973,120]
[335102385,1723825833043,-151.0,0.00273973,120]
[335102386,1723825833053,-151.0,0.00273973,120]
[335102387,1723825833064,-151.0,0.00273973,120]
[335102388,1723825833073,-151.0,0.00273973,120]
[335102389,1723825833084,-151.0,0.00273973,120]
[335102390,1723825833094,-151.0,0.00273973,120]
[335102391,1723825833104,-151.0,0.00273973,120]
[335102392,1723825833113,-151.0,0.00273973,120]
[335102393,1723825833123,-151.0,0.00273973,120]
[335102394,1723825833135,-522.324834,0.00273973,120]
[335102395,1723825833145,-522.324834,0.00273973,120]
[335102396,1723825833155,-522.324834,0.00273973,120]
[335102397,1723825833166,-522.324834,0.00273973,120]
[335102398,1723825833177,-522.324834,0.00273973,120]
[335102399,1723825833186,-522.324834,0.00273973,120]
[335102400,1723825833195,-522.324834,0.00273973,120]
[335102401,1723825833205,-522.324834,0.00273973,120]
[335102402,1723825833215,-522.324834,0.00273973,120]
[335102403,1723825833224,-522.324834,0.00273973,120]
[335102404,1723825833235,-522.324834,0.00273973,120]
[335102405,1723825833244,-522.324834,0.00273973,120]
[335102406,1723825833254,-522.324834,0.00273973,120]
[335102407,1723825833264,-522.324834,0.00273973,120]
[335102408,1723825833273,-522.324834,0.00273973,120]
[335102409,1723825833283,-522.324834,0.00273973,120]
[335102410,1723825833292,-522.324834,0.00273973,120]
[335102411,1723825833301,-522.324834,0.00273973,120]
[335102412,1723825833311,-334.99643586,0.00273973,120]
[335102413,1723825833324,-187.32839814,0.00273973,120]
[335102414,1723825833334,-522.324836,0.00273973,120]
[335102415,1723825833344,-151.0,0.00273973,120]
[335102416,1723825833354,-151.0,0.00273973,120]
[335102417,1723825833364,-778.49645,0.00273973,120]
[335102418,1723825833374,-151.0,0.00273973,120]
[335102419,1723825833389,-778.49645,0.00273973,120]
[335102420,1723825833398,-778.49645,0.00273973,120]
[335102421,1723825833408,-778.49645,0.00273973,120]
[335102422,1723825833418,-778.49645,0.00273973,120]
[335102423,1723825833427,-778.49645,0.00273973,120]
[335102424,1723825833438,-778.49645,0.00273973,120]
[335102425,1723825833582,-778.49645,0.00273973,120]
[335102426,1723825833595,-778.49645,0.00273973,120]
[335102427,1723825833605,-778.49645,0.00273973,120]
[335102428,1723825833614,-778.49645,0.00273973,120]
[335102429,1723825833626,-778.49645,0.00273973,120]
[335102430,1723825833638,-778.49645,0.00273973,120]
[335102431,1723825833648,-778.49645,0.00273973,120]
[335102432,1723825833658,-778.49646,0.00273973,120]
[335102433,1723825833671,-151.0,0.00273973,120]
[335102434,1723825833681,-374.940516,0.00273973,120]
[335102435,1723825833691,-374.940516,0.00273973,120]
[335102436,1723825833700,-374.940516,0.00273973,120]
[335102437,1723825833710,-374.940516,0.00273973,120]
[335102438,1723825833722,-374.940516,0.00273973,120]
[335102439,1723825833732,-374.940516,0.00273973,120]
[335102440,1723825833742,-374.940516,0.00273973,120]
[335102441,1723825833756,-374.940516,0.00273973,120]
[335102442,1723825833766,-374.940516,0.00273973,120]
[335102443,1723825833776,-374.940516,0.00273973,120]
[335102444,1723825833785,-374.940516,0.00273973,120]
[335102445,1723825833795,-374.940516,0.00273973,120]
[335102446,1723825833805,-374.940516,0.00273973,120]
[335102447,1723825833815,-374.940516,0.00273973,120]
[335102448,1723825833826,-374.940516,0.00273973,120]
[335102449,1723825833836,-374.940516,0.00273973,120]
[335102450,1723825833847,-374.940516,0.00273973,120]
[335102451,1723825833856,-374.940516,0.00273973,120]
[335102452,1723825833867,-374.940516,0.00273973,120]
[335102453,1723825833876,-151.0,0.00273973,120]
[335102454,1723825833890,-374.94052,0.00273973,120]
[335102455,1723825833902,-151.0,0.00273973,120]
[335102456,1723825833912,-151.0,0.00273973,120]
[335102457,1723825833923,-151.0,0.00273973,120]
[335102458,1723825833934,-151.0,0.00273973,120]
[335102459,1723825833943,-513.797711,0.00273973,120]
[335102460,1723825833952,-513.797711,0.00273973,120]
[335102461,1723825833962,-513.797711,0.00273973,120]
[335102462,1723825833973,-513.797711,0.00273973,120]
[335102463,1723825833983,-513.797711,0.00273973,120]
[335102464,1723825833993,-513.797711,0.00273973,120]
[335102465,1723825834003,-513.797711,0.00273973,120]
[335102466,1723825834013,-513.797711,0.00273973,120]
[335102467,1723825834023,-513.797711,0.00273973,120]
[335102468,1723825834033,-513.797711,0.00273973,120]
[335102469,1723825834044,-513.797711,0.00273973,120]
[335102470,1723825834054,-513.797711,0.00273973,120]
[335102471,1723825834064,-513.797711,0.00273973,120]
[335102472,1723825834074,-513.797711,0.00273973,120]
[335102473,1723825834085,-513.797711,0.00273973,120]
[335102474,1723825834095,-513.797711,0.00273973,120]
[335102475,1723825834105,-513.797711,0.00273973,120]
[335102476,1723825834116,-513.797711,0.00273973,120]
[335102477,1723825834127,-513.797711,0.00273973,120]
[335102478,1723825834139,-151.0,0.00273973,120]
[335102479,1723825834149,-151.0,0.00273973,120]
[335102480,1723825834158,-151.0,0.00273973,120]
[335102481,1723825834168,-151.0,0.00273973,120]
[335102482,1723825834177,-151.0,0.00273973,120]
[335102483,1723825834188,-151.0,0.00273973,120]
[335102484,1723825834198,-151.0,0.00273973,120]
[335102485,1723825834209,-151.0,0.00273973,120]
[335102486,1723825834221,-223.707864,0.00273973,120]
[335102487,1723825834231,-151.0,0.00273973,120]
[335102488,1723825834242,-307.887636,0.00273973,120]
[335102489,1723825834253,-307.887636,0.00273973,120]
[335102490,1723825834264,-307.887636,0.00273973,120]
[335102491,1723825834274,-307.887636,0.00273973,120]
[335102492,1723825834285,-307.887636,0.00273973,120]
[335102493,1723825834295,-307.887636,0.00273973,120]
[335102494,1723825834304,-307.887636,0.00273973,120]
[335102495,1723825834314,-307.887636,0.00273973,120]
[335102496,1723825834324,-307.887636,0.00273973,120]
[335102497,1723825834334,-307.887636,0.00273973,120]
[335102498,1723825834344,-307.887636,0.00273973,120]
[335102499,1723825834354,-307.887636,0.00273973,120]
[335102500,1723825834363,-307.887636,0.00273973,120]
[335102501,1723825834373,-307.887636,0.00273973,120]
[335102502,1723825834386,-307.887636,0.00273973,120]
[335102503,1723825834398,-307.887636,0.00273973,120]
[335102504,1723825834408,-307.887636,0.00273973,120]
[335102505,1723825834419,-307.887636,0.00273973,120]
[335102506,1723825834428,-307.887636,0.00273973,120]
[335102507,1723825834439,-228.584984,0.00273973,120]
[335102508,1723825834450,-151.0,0.00273973,120]
[335102509,1723825834460,-151.0,0.00273973,120]
[335102510,1723825834470,-151.0,0.00273973,120]
[335102511,1723825834479,-151.0,0.00273973,120]
[335102512,1723825834489,-151.0,0.00273973,120]
[335102513,1723825834498,-563.60578,0.00273973,120]
[335102514,1723825834508,-563.60578,0.00273973,120]
[335102515,1723825834519,-563.60578,0.00273973,120]
[335102516,1723825834529,-563.60578,0.00273973,120]
[335102517,1723825834538,-563.60578,0.00273973,120]
[335102518,1723825834548,-151.0,0.00273973,120]
[335102519,1723825834557,-563.60578,0.00273973,120]
[335102520,1723825834567,-563.60578,0.00273973,120]
[335102521,1723825834580,-563.60578,0.00273973,120]
[335102522,1723825834590,-563.60578,0.00273973,120]
[335102523,1723825834600,-563.60578,0.00273973,120]
[335102524,1723825834610,-151.0,0.00273973,120]
[335102525,1723825834621,-563.60578,0.00273973,120]
[335102526,1723825834634,-151.0,0.00273973,120]
[335102527,1723825834646,-563.60578,0.00273973,120]
[335102528,1723825834656,-151.0,0.00273973,120]
[335102529,1723825834665,-563.60578,0.00273973,120]
[335102530,1723825834675,-563.60578,0.00273973,120]
[335102531,1723825834685,-563.60578,0.00273973,120]
[335102532,1723825834695,-563.60578,0.00273973,120]
[335102533,1723825834705,-563.60578,0.00273973,120]
[335102534,1723825834715,-563.60578,0.00273973,120]
[335102535,1723825834724,-563.60578,0.00273973,120]
[335102536,1723825834734,-563.60579,0.00273973,120]
[335102537,1723825834743,-579.195951,0.00273973,120]
[335102538,1723825834752,-579.195951,0.00273973,120]
[335102539,1723825834761,-579.195951,0.00273973,120]
[335102540,1723825834771,-579.195951,0.00273973,120]
[335102541,1723825834780,-579.195951,0.00273973,120]
[335102542,1723825834789,-579.195951,0.00273973,120]
[335102543,1723825834799,-579.195951,0.00273973,120]
[335102544,1723825834810,-579.195951,0.00273973,120]
[335102545,1723825834821,-579.195951,0.00273973,120]
[335102546,1723825834831,-579.195951,0.00273973,120]
[335102547,1723825834842,-579.195951,0.00273973,120]
[335102548,1723825834853,-579.195951,0.00273973,120]
[335102549,1723825834863,-579.195951,0.00273973,120]
[335102550,1723825834873,-579.195951,0.00273973,120]
[335102551,1723825834888,-579.195951,0.00273973,120]
[335102552,1723825834898,-579.195951,0.00273973,120]
[335102553,1723825834908,-579.195951,0.00273973,120]
[335102554,1723825834919,-579.195951,0.00273973,120]
[335102555,1723825834929,-579.195951,0.00273973,120]
[335102556,1723825834938,-579.195957,0.00273973,120]
[335102557,1723825834948,-578.768097,0.00273973,120]
[335102558,1723825834957,-578.768097,0.00273973,120]
[335102559,1723825834967,-578.768097,0.00273973,120]
[335102560,1723825834976,-578.768097,0.00273973,120]
[335102561,1723825834987,-578.768097,0.00273973,120]
[335102562,1723825834997,-578.768097,0.00273973,120]
[335102563,1723825835006,-578.768097,0.00273973,120]
[335102564,1723825835015,-578.768097,0.00273973,120]
[335102565,1723825835028,-578.768097,0.00273973,120]
[335102566,1723825835039,-578.768097,0.00273973,120]
[335102567,1723825835050,-578.768097,0.00273973,120]
[335102568,1723825835062,-578.768097,0.00273973,120]
[335102569,1723825835074,-578.768097,0.00273973,120]
[335102570,1723825835086,-578.768097,0.00273973,120]
[335102571,1723825835097,-578.768097,0.00273973,120]
[335102572,1723825835109,-151.0,0.00273973,120]
[335102573,1723825835120,-578.768097,0.00273973,120]
[335102574,1723825835133,-578.768097,0.00273973,120]
[335102575,1723825835150,-578.768097,0.00273973,120]
[335102576,1723825835159,-578.768097,0.00273973,120]
[335102577,1723825835169,-578.768101,0.00273973,120]
[335102578,1723825835179,-151.0,0.00273973,120]
[335102579,1723825835190,-151.0,0.00273973,120]
[335102580,1723825835201,-151.0,0.00273973,120]
[335102581,1723825835212,-151.0,0.00273973,120]
[335102582,1723825835222,-151.0,0.00273973,120]
[335102583,1723825835233,-151.0,0.00273973,120]
[335102584,1723825835243,-151.0,0.00273973,120]
[335102585,1723825835254,-151.0,0.00273973,120]
[335102586,1723825835264,-151.0,0.00273973,120]
[335102587,1723825835275,-151.0,0.00273973,120]
[335102588,1723825835286,-151.0,0.00273973,120]
[335102589,1723825835296,-151.0,0.00273973,120]
[335102590,1723825835307,-151.0,0.00273973,120]
[335102591,1723825835318,-151.0,0.00273973,120]
[335102592,1723825835328,-151.0,0.00273973,120]
[335102593,1723825835340,-151.0,0.00273973,120]
[335102594,1723825835350,-151.0,0.00273973,120]
[335102595,1723825835362,-213.894176,0.00273973,120]
[335102596,1723825835373,-1998.004684,0.00273973,120]
[335102597,1723825835386,-1998.004684,0.00273973,120]
[335102598,1723825835397,-7563.58417535,0.0038999,90]
[335102599,1723825835408,-3000.0,0.0039,120]
[335102600,1723825835419,-1677.23255917,0.004,120]
[335102601,1723825835430,-163.43766857,0.00475607,120]
[335102602,1723825835441,-163.43766857,0.00476719,120]
[335102603,1723825835452,-3000.0,0.0049,120]
[335102604,1723825835463,-1234.66748383,0.0055,120]
[335102605,1723825835475,-3000.0,0.0069,120]
[335102606,1723825835485,-5000.0,0.0069,120]
[335102607,1723825835496,-10000.0,0.00694,120]
[335102608,1723825835506,-508.11,0.007,120]
[335102609,1723825835517,-150.0,0.007166,90]
[335102610,1723825835528,-150.0,0.007166,120]
[335102611,1723825835539,-166.91,0.007166,120]
[335102612,1723825835550,-188.789999,0.007176,90]
[335102613,1723825835559,-150.0,0.007176,120]
[335102614,1723825835570,-200.0,0.007186,120]
[335102615,1723825835586,-11156.56996211,0.0074,120]
[335102616,1723825835597,-4892.10774382,0.00749906,120]
[335102617,1723825835608,-7563.58417535,0.00749989,120]
[335102618,1723825835619,-8144.44724805,0.00749999,120]
[335102633,1723825838607,-1000.0,0.0019,120]
[335102634,1723825838615,-1998.004684,0.00273973,120]
[335102635,1723825838624,-1998.004684,0.00273973,120]
[335102636,1723825838635,-1998.004684,0.00273973,120]
[335102637,1723825838645,-1998.004684,0.00273973,120]
[335102638,1723825838659,-1998.004684,0.00273973,120]
[335102639,1723825838668,-1998.004684,0.00273973,120]
[335102640,1723825838679,-1998.004684,0.00273973,120]
[335102641,1723825838688,-1998.004684,0.00273973,120]
[335102642,1723825838696,-1998.004684,0.00273973,120]
[335102643,1723825838704,-1998.004684,0.00273973,120]
[335102644,1723825838711,-1998.004684,0.00273973,120]
[335102645,1723825838720,-1998.004684,0.00273973,120]
[335102646,1723825838731,-1998.004684,0.00273973,120]
[335102647,1723825838740,-1998.004684,0.00273973,120]
[335102648,1723825838751,-4892.10774382,0.00750505,120]
[335102649,1723825838760,-500.0,0.008,120]
[335102650,1723825838768,-450.0,0.008,120]
[335102651,1723825838779,-2498.84679252,0.008,120]
[335102652,1723825838787,-358.35473781,0.00801841,28]
[335102653,1723825838795,-803.92976777,0.00810714,120]
[335102654,1723825838803,-400.0,0.00824,120]
[335102655,1723825838811,-2498.84679252,0.0085,120]
[335102656,1723825838819,-19649.96617022,0.0085,120]
[335102657,1723825838827,-151.0,0.00855562,120]
[335102658,1723825838836,-4000.0,0.0088,120]
[335102659,1723825838844,-500.0,0.009,120]
[335102660,1723825838852,-500.0,0.009,120]
[335102661,1723825838860,-3000.0,0.009,90]
[335102662,1723825838871,-2498.84679252,0.009,120]
[335102663,1723825838880,-803.92976777,0.0090893,120]
[335102664,1723825838887,-304.46779216,0.00909075,2]
[335102665,1723825838894,-648.14673617,0.00909075,7]
[335102666,1723825838902,-7563.58417535,0.0093299,120]
[335102667,1723825838911,-12868.0,0.00933,120]
[335102668,1723825838918,-3000.0,0.0094,120]
[335102669,1723825838926,-2498.27437768,0.0095,120]
[335102670,1723825838935,-1253.8,0.00979,106]
[335102671,1723825838944,-158.07,0.00991,120]
[335102672,1723825838952,-277.2942488,0.00999999,120]
[335102673,1723825838960,-1250.0,0.01,120]
[335102674,1723825838968,-176.45037883,0.01,120]
[335102675,1723825838978,-1498.27437768,0.01,120]
[335102676,1723825838987,-1000.0,0.01,120]
[335102677,1723825838995,-803.92976777,0.01007143,120]
[335102678,1723825839004,-500.0,0.01023,120]
[335102679,1723825839012,-1250.0,0.011,120]
[335102680,1723825839020,-225.0,0.011,120]
[335102681,1723825839028,-803.92976777,0.01105357,120]
[335102682,1723825839037,-200.0,0.01143,120]
[335102683,1723825839047,-1250.0,0.012,120]
[335102684,1723825839055,-2000.0,0.012,120]
[335102685,1723825839065,-4000.0,0.012,120]
[335102686,1723825839073,-803.92976777,0.01203572,120]
[335102687,1723825839080,-4476.02160039,0.0122,120]
[335102688,1723825839088,-151.0,0.01233342,120]
[335102689,1723825839096,-1000.0,0.01234568,120]
[335102690,1723825839105,-1250.0,0.013,120]
[335102691,1723825839114,-803.92976777,0.01301787,120]
[335102692,1723825839125,-1017.0229,0.013135,105]
[335102693,1723825839141,-200.0,0.01328,120]
[335102694,1723825839152,-1250.0,0.014,120]
[335102695,1723825839161,-450.0,0.014,120]
[335102696,1723825839169,-200.0,0.014,120]
[335102697,1723825839178,-1699.0,0.014086,78]
[335102698,1723825839187,-151.0,0.0146,120]
[335102699,1723825839291,-803.92976777,0.01478824,120]
[335102700,1723825839300,-803.92976777,0.01498215,120]
[335102701,1723825839308,-1250.0,0.015,120]
[335102702,1723825839316,-150.0,0.015,120]
[335102703,1723825839324,-1135.1,0.015,62]
[335102704,1723825839332,-1498.27437768,0.015,120]
[335102705,1723825839340,-1392.0,0.015,120]
[335102706,1723825839346,-358.35473781,0.01501517,28]
[335102707,1723825839355,-200.0,0.01527,120]
[335102708,1723825839364,-151.0,0.015531,120]
[335102709,1723825839371,-1615.3,0.015746,70]
[335102710,1723825839379,-803.92976777,0.0159643,120]
[335102711,1723825839393,-1250.0,0.016,120]